[Event "FIDE Open Sachove Univerzity QCC"]
[Site "Ceske Budejovice"]
[Date "2020.07.08"]
[Round "8.11"]
[White "Pokora, Lubomir"]
[Black "Kamleiter, Noah"]
[Result "1/2-1/2"]
[ECO "A47"]
[WhiteElo "1800"]
[BlackElo "1463"]
[Annotator "NA"]
[PlyCount "73"]
[EventDate "2020.07.01"]
[EventType "swiss"]
[EventCountry "CZE"]
[SourceTitle "playchess.com"]
[Source "ChessBase"]
[SourceQuality "1"]
[TimeControl "40/5400+30:1800+30"]

1. d4 {[%emt 0:00:00]} Nf6 {[%emt 0:00:00]} 2. Nf3 {[%emt 0:00:00]} e6 {[%emt 0:03:09]} 3. e3 {[%emt 0:00:22]} b6 {[%emt 0:02:34]} 4. Bd3 {[%emt 0:00:36]} Bb7 {[%emt 0:01:35]} 5. Nbd2 {[%emt 0:00:49]} d6 {[%emt 0:03:10]} 6. O-O {[%emt 0:02:04]} Nbd7 {[%emt 0:00:23]} 7. Qe2 {[%emt 0:05:44]} Be7 {[%emt 0:01:31]} 8. b3 {[%emt 0:03:49]} O-O {[%emt 0:02:25]} 9. Bb2 {[%emt 0:00:26]} c5 {[%emt 0:02:49]} 10. Rfd1 {[%emt 0:08:19]} Rc8 {[%emt 0:06:10]} 11. c4 {[%emt 0:00:48]} Re8 {[%emt 0:06:04]} 12. Rac1 {[%emt 0:03:12]} Bf8 {[%emt 0:11:45]} 13. Ne1 {[%emt 0:06:52]} d5 {[%emt 0:11:38]} 14. cxd5 $11 {[%emt 0:05:50]} exd5 {[%emt 0:03:07]} 15. dxc5 {[%emt 0:04:16]} bxc5 {[%emt 0:06:40]} 16. Qf1 {[%emt 0:00:21]} Ne5 {[%emt 0:02:49]} 17. Bb5 {[%emt 0:04:15]} Bc6 {[%emt 0:05:15]} 18. Bxc6 {[%emt 0:01:28]} Nxc6 {[%emt 0:02:13]} 19. Ndf3 {[%emt 0:01:40]} Ne4 {[%emt 0:06:13]} 20. Nc2 {[%emt 0:01:41]} Ng5 {[%emt 0:03:53]} 21. Nce1 {[%emt 0:09:51]} Ne4 {[%emt 0:04:35]} 22. Nd3 {[%emt 0:01:50]} Nb4 {[%emt 0:07:14]} 23. Nxb4 {[%emt 0:00:58]} cxb4 {[%emt 0:00:23]} 24. Qb5 {[%emt 0:12:01]} Rxc1 {[%emt 0:00:35]} 25. Rxc1 {[%emt 0:02:07]} Bd6 {[%emt 0:02:39]} 26. g3 {[%emt 0:02:00]} Be7 {[%emt 0:01:45]} 27. Bd4 {[%emt 0:01:36]} Qa8 {[%emt 0:01:19]} 28. Rc7 {[%emt 0:05:16]} a6 {[%emt 0:00:26]} 29. Qf1 {[%emt 0:03:56]} Qb8 {[%emt 0:00:48]} 30. Qc1 {[%emt 0:01:38]} Bd6 {[%emt 0:00:29]} 31. Rc2 {[%emt 0:00:37]} h6 {[%emt 0:00:27]} 32. Ne1 {[%emt 0:00:53]} Be5 {[%emt 0:00:29]} 33. Nf3 {[%emt 0:03:01]} Bxd4 {[%emt 0:00:10]} 34. Nxd4 {[%emt 0:00:01]} Nc3 {[%emt 0:00:25]} 35. Qf1 {[%emt 0:04:30]} Qb7 {[%emt 0:00:30]} 36. Qd3 {[%emt 0:00:33]} g6 {[%emt 0:00:58]} 37. h4 {[%emt 0:01:31]} 1/2-1/2

[Event "FIDE Open Sachove Univerzity QCC"]
[Site "Ceske Budejovice"]
[Date "2020.07.08"]
[Round "8.12"]
[White "Zachar, Jaroslav"]
[Black "Dudkova, Josefina"]
[Result "1-0"]
[ECO "A52"]
[WhiteElo "1831"]
[BlackElo "1447"]
[Annotator "NA"]
[PlyCount "47"]
[EventDate "2020.07.01"]
[EventType "swiss"]
[EventCountry "CZE"]
[SourceTitle "playchess.com"]
[Source "ChessBase"]
[SourceQuality "1"]
[TimeControl "40/5400+30:1800+30"]

1. d4 {[%emt 0:02:06]} Nf6 {[%emt 0:00:00]} 2. c4 {[%emt 0:01:15]} e5 {[%emt 0:00:06]} 3. dxe5 {[%emt 0:00:21]} Ng4 {[%emt 0:00:10]} 4. Nf3 {[%emt 0:01:50]} Bc5 {[%emt 0:00:32]} 5. e3 {[%emt 0:00:16]} Nc6 {[%emt 0:00:28]} 6. a3 {[%emt 0:01:20]} a6 {[%emt 0:13:02] A52: Budapest Gambit.} 7. b4 {[%emt 0:11:29]} Ba7 {[%emt 0:01:19]} 8. Bb2 {[%emt 0:00:38] [#]} O-O $146 {[%emt 0:07:21]} ({Predecessor:} 8... f6 9. exf6 Nxf6 10. Nc3 Ne7 11. Bd3 d5 12. cxd5 Nexd5 13. Nxd5 Nxd5 14. Qb3 c6 {½-½ (29) Celik,A (1793)-Wernke Schmiesing,S (1475) Verden 2010}) 9. b5 {[%emt 0:01:50]} axb5 {[%emt 0:03:44]} 10. cxb5 {[%emt 0:00:39]} Ne7 {[%emt 0:01:08]} 11. Bd3 {[%emt 0:00:41]} Nh6 {[%emt 0:04:59]} 12. Qc2 {[%emt 0:04:43]} Kh8 {[%emt 0:06:40]} 13. Nbd2 {[%emt 0:13:00]} Ng6 {[%emt 0:04:48]} 14. h4 {[%emt 0:05:39]} Re8 {[%emt 0:08:02]} (14... d6 $142 15. exd6 cxd6) 15. Ne4 {[%emt 0:05:49]} c6 {[%emt 0:05:10]} 16. Nd6 {[%emt 0:04:35]} Re7 {[%emt 0:00:59]} 17. Ng5 {[%emt 0:01:11]} Qf8 {[%emt 0:04:16]} 18. Bxg6 {[%emt 0:03:23]} fxg6 {[%emt 0:02:01]} 19. h5 $18 {[%emt 0:00:19]} Nf5 {[%emt 0:04:56]} 20. hxg6 {[%emt 0:10:14]} h6 {[%emt 0:06:54]} 21. Nxf5 {[%emt 0:00:34]} Re8 {[%emt 0:01:06]} 22. Rxh6+ {[%emt 0:04:02]} gxh6 {[%emt 0:04:14]} 23. g7+ {[%emt 0:00:09]} Qxg7 {[%emt 0:00:31]} 24. Nxg7 {[%emt 0:00:07]} 1-0

[Event "FIDE Open Sachove Univerzity QCC"]
[Site "Ceske Budejovice"]
[Date "2020.07.08"]
[Round "8.13"]
[White "Finek, Vaclav"]
[Black "Petkov, Andon"]
[Result "1-0"]
[ECO "B00"]
[WhiteElo "2210"]
[BlackElo "1776"]
[Annotator "ChessBase"]
[PlyCount "75"]
[EventDate "2020.07.01"]
[EventType "swiss"]
[EventCountry "CZE"]
[SourceTitle "playchess.com"]
[Source "ChessBase"]
[SourceQuality "1"]
[TimeControl "40/5400+30:1800+30"]

1. e4 {[%emt 0:06:39]} Nc6 {[%emt 0:00:00]} 2. Nf3 {[%emt 0:00:30]} d6 {[%emt 0:00:22]} 3. d4 {[%emt 0:00:47]} Nf6 {[%emt 0:00:47]} 4. Nc3 {[%emt 0:00:10]} Bg4 {[%emt 0:00:05]} 5. Be2 {[%emt 0:00:09]} e6 {[%emt 0:01:04]} 6. O-O {[%emt 0:00:09]} d5 {[%emt 0:00:46]} 7. exd5 {[%emt 0:00:53]} exd5 {[%emt 0:07:51]} 8. Bg5 {[%emt 0:00:29]} Be7 {[%emt 0:00:50]} 9. h3 {[%emt 0:00:16]} Bh5 {[%emt 0:01:48]} 10. Re1 {[%emt 0:02:29]} O-O {[%emt 0:04:24]} 11. a3 {[%emt 0:02:57]} Re8 {[%emt 0:10:47]} 12. g4 {[%emt 0:02:40]} Bg6 {[%emt 0:09:29]} 13. Bb5 {[%emt 0:00:57]} a6 {[%emt 0:00:06]} 14. Ba4 {[%emt 0:09:06]} h6 {[%emt 0:00:16]} 15. Bh4 {[%emt 0:18:15]} Ne4 {[%emt 0:06:04]} 16. Nxe4 {[%emt 0:05:28]} Bxe4 {[%emt 0:18:53]} 17. Bxe7 {[%emt 0:07:09]} Rxe7 {[%emt 0:02:40]} 18. Bxc6 {[%emt 0:03:05]} bxc6 {[%emt 0:00:46]} 19. Ne5 {[%emt 0:00:39]} Qd6 {[%emt 0:00:06]} 20. Nd3 {[%emt 0:00:36]} Qf6 {[%emt 0:01:24]} 21. Nc5 {[%emt 0:03:07]} Rae8 {[%emt 0:04:44]} 22. Nxe4 {[%emt 0:06:01]} Rxe4 {[%emt 0:11:47]} 23. Rxe4 {[%emt 0:00:09]} Rxe4 {[%emt 0:00:10]} 24. c3 {[%emt 0:00:05]} h5 {[%emt 0:00:11]} 25. f3 {[%emt 0:04:46]} Rf4 {[%emt 0:02:02]} 26. Kg2 {[%emt 0:00:58]} hxg4 {[%emt 0:00:27]} 27. hxg4 {[%emt 0:00:22]} Qg5 {[%emt 0:00:03]} 28. Qe2 {[%emt 0:00:53]} Rf6 {[%emt 0:01:13]} 29. Qe8+ {[%emt 0:11:23]} Kh7 {[%emt 0:06:14]} 30. Rh1+ {[%emt 0:00:08]} Kg6 {[%emt 0:00:09]} 31. Qe2 {[%emt 0:00:05]} Re6 {[%emt 0:02:42]} 32. Qd3+ {[%emt 0:00:21]} Kf6 {[%emt 0:01:39]} 33. Kg3 {[%emt 0:06:40]} Ke7 {[%emt 0:01:44]} 34. Qxa6 {[%emt 0:05:24]} Qd2 {[%emt 0:01:27]} 35. Qc8 {[%emt 0:00:32]} g5 {[%emt 0:01:38]} 36. Qxc7+ {[%emt 0:02:08]} Kf6 {[%emt 0:01:17]} 37. Rh6+ {[%emt 0:00:06]} Kg7 {[%emt 0:00:44]} 38. Rxe6 {[%emt 0:00:09]} 1-0

[Event "FIDE Open Sachove Univerzity QCC"]
[Site "Ceske Budejovice"]
[Date "2020.07.08"]
[Round "8.14"]
[White "Valasek, Jakub"]
[Black "Roubal, Matyas"]
[Result "0-1"]
[ECO "C56"]
[WhiteElo "1688"]
[BlackElo "1443"]
[Annotator "NA"]
[PlyCount "62"]
[EventDate "2020.07.01"]
[EventType "swiss"]
[EventCountry "CZE"]
[SourceTitle "playchess.com"]
[Source "ChessBase"]
[SourceQuality "1"]
[TimeControl "40/5400+30:1800+30"]

1. e4 {[%emt 0:00:00]} e5 {[%emt 0:00:00]} 2. Nf3 {[%emt 0:00:05]} Nc6 {[%emt 0:00:00]} 3. d4 {[%emt 0:00:33]} exd4 {[%emt 0:00:00]} 4. Bc4 {[%emt 0:00:30]} Nf6 {[%emt 0:00:00]} 5. e5 {[%emt 0:00:42]} d5 {[%emt 0:00:02]} 6. Bb5 {[%emt 0:00:29]} Ne4 {[%emt 0:00:04]} 7. Nxd4 {[%emt 0:00:18]} Bd7 {[%emt 0:00:04]} 8. Bxc6 {[%emt 0:00:39]} bxc6 {[%emt 0:00:04]} 9. O-O {[%emt 0:00:51]} Bc5 {[%emt 0:00:12]} 10. c3 {[%emt 0:01:30]} O-O {[%emt 0:00:40]} 11. f3 {[%emt 0:04:36]} Ng5 {[%emt 0:00:24]} 12. Be3 {[%emt 0:01:41]} Rb8 {[%emt 0:02:42]} 13. b4 {[%emt 0:01:06]} Bb6 {[%emt 0:02:23]} 14. Qd2 {[%emt 0:01:31]} Ne6 {[%emt 0:01:11]} 15. f4 {[%emt 0:01:29]} Nxd4 {[%emt 0:06:11]} 16. cxd4 {[%emt 0:01:08]} Bf5 {[%emt 0:03:07]} 17. a4 {[%emt 0:03:27]} a6 {[%emt 0:04:58]} 18. Qe2 {[%emt 0:03:38]} a5 {[%emt 0:10:13]} 19. g4 {[%emt 0:05:05]} Be4 {[%emt 0:00:30]} 20. Qe1 {[%emt 0:07:34]} axb4 {[%emt 0:00:30]} 21. f5 {[%emt 0:00:30]} f6 {[%emt 0:00:30]} 22. exf6 {[%emt 0:00:30]} Qxf6 {[%emt 0:01:26]} 23. Qf2 {[%emt 0:04:07]} Rbe8 {[%emt 0:02:04]} 24. Nd2 {[%emt 0:07:39]} Bd3 {[%emt 0:00:47]} 25. Rfe1 {[%emt 0:06:59]} Rxe3 {[%emt 0:01:05]} 26. Rxe3 {[%emt 0:01:57]} Qxd4 {[%emt 0:01:28]} 27. Rae1 {[%emt 0:01:04]} Qxg4+ {[%emt 0:02:07]} 28. Kh1 {[%emt 0:08:00]} Qxf5 {[%emt 0:00:21]} 29. Qxf5 {[%emt 0:00:44]} Rxf5 {[%emt 0:00:30]} 30. Re6 {[%emt 0:00:30]} Rf2 {[%emt 0:00:30]} 31. Nb3 {[%emt 0:01:52]} Bc4 {[%emt 0:01:05]} 0-1

[Event "FIDE Open Sachove Univerzity QCC"]
[Site "Ceske Budejovice"]
[Date "2020.07.08"]
[Round "8.15"]
[White "Macho, Miloslav"]
[Black "Stary, Vojtech"]
[Result "1-0"]
[ECO "C47"]
[WhiteElo "1671"]
[BlackElo "1422"]
[Annotator "NA"]
[PlyCount "109"]
[EventDate "2020.07.01"]
[EventType "swiss"]
[EventCountry "CZE"]
[SourceTitle "playchess.com"]
[Source "ChessBase"]
[SourceQuality "1"]
[TimeControl "40/5400+30:1800+30"]

1. e4 {[%emt 0:05:47]} e5 {[%emt 0:00:00]} 2. Nc3 {[%emt 0:00:30]} Nf6 {[%emt 0:00:00]} 3. Nf3 {[%emt 0:00:06]} Nc6 {[%emt 0:00:15]} 4. g3 {[%emt 0:00:08]} Be7 {[%emt 0:05:40]} 5. Bg2 {[%emt 0:01:35]} O-O {[%emt 0:01:00]} 6. O-O {[%emt 0:00:05]} d6 {[%emt 0:01:11]} 7. d3 {[%emt 0:00:21]} Bg4 {[%emt 0:01:14]} 8. h3 {[%emt 0:00:28]} Bh5 {[%emt 0:00:34]} 9. g4 {[%emt 0:00:43]} Bg6 {[%emt 0:01:32]} 10. Nd5 {[%emt 0:01:50]} Nxd5 {[%emt 0:02:48]} 11. exd5 {[%emt 0:00:02]} Nb8 {[%emt 0:03:09]} 12. Nh2 {[%emt 0:04:55]} Nd7 {[%emt 0:01:55]} 13. Qe2 {[%emt 0:02:44]} Bg5 {[%emt 0:01:01]} 14. Bxg5 {[%emt 0:05:53]} Qxg5 {[%emt 0:00:48]} 15. Nf3 {[%emt 0:00:09]} Qf4 {[%emt 0:01:14]} 16. Nh4 {[%emt 0:01:34]} Rae8 {[%emt 0:02:16]} 17. Rae1 {[%emt 0:03:36]} Qg5 {[%emt 0:09:36]} 18. Nxg6 {[%emt 0:05:22]} Qxg6 {[%emt 0:01:23]} 19. Kh2 {[%emt 0:08:57]} Nf6 {[%emt 0:04:37]} 20. Be4 {[%emt 0:01:18]} Nxe4 {[%emt 0:00:41]} 21. Qxe4 {[%emt 0:00:21]} Qxe4 {[%emt 0:00:31]} 22. dxe4 {[%emt 0:00:09]} g6 {[%emt 0:00:36]} 23. f4 {[%emt 0:03:45]} f6 {[%emt 0:01:49]} 24. f5 {[%emt 0:00:32]} g5 {[%emt 0:01:25]} 25. Re3 {[%emt 0:00:16]} a5 {[%emt 0:01:04]} 26. Ra3 {[%emt 0:02:44]} b6 {[%emt 0:02:02]} 27. Rc3 {[%emt 0:00:07]} Re7 {[%emt 0:00:21]} 28. Rff3 {[%emt 0:00:25]} Rff7 {[%emt 0:01:05]} 29. Kg3 {[%emt 0:00:39]} h6 {[%emt 0:00:22]} 30. Rc6 {[%emt 0:01:49]} Kf8 {[%emt 0:00:57]} 31. a3 {[%emt 0:00:59]} Ke8 {[%emt 0:07:06]} 32. b4 {[%emt 0:02:19]} axb4 {[%emt 0:03:41]} 33. axb4 {[%emt 0:00:11]} Rd7 {[%emt 0:03:30]} 34. Ra3 {[%emt 0:00:45]} Rfe7 {[%emt 0:02:58]} 35. h4 {[%emt 0:02:35]} Kf7 {[%emt 0:02:16]} 36. Ra7 {[%emt 0:01:00]} Kg7 {[%emt 0:01:30]} 37. h5 {[%emt 0:00:12]} Kf7 {[%emt 0:00:51]} 38. Kf3 {[%emt 0:00:09]} Ke8 {[%emt 0:13:46]} 39. Ke3 {[%emt 0:00:24]} Rf7 {[%emt 0:00:53]} 40. Kd3 {[%emt 0:00:19]} Rde7 {[%emt 0:02:02]} 41. Kc4 {[%emt 0:30:20]} Kd8 {[%emt 0:32:32]} 42. Ra8+ {[%emt 0:00:43]} Kd7 {[%emt 0:00:28]} 43. Kb5 {[%emt 0:00:43]} Rg7 {[%emt 0:03:42]} 44. Ka6 {[%emt 0:01:06]} Re8 {[%emt 0:09:59]} 45. Ra7 {[%emt 0:02:00]} Kd8 {[%emt 0:02:40]} 46. Kb7 {[%emt 0:01:26]} Rd7 {[%emt 0:00:46]} 47. Ra8+ {[%emt 0:00:46]} Ke7 {[%emt 0:00:22]} 48. Rxe8+ {[%emt 0:00:27]} Kxe8 {[%emt 0:00:02]} 49. Rxc7 {[%emt 0:00:17]} Rd8 {[%emt 0:00:28]} 50. Rc8 {[%emt 0:00:25]} Kd7 {[%emt 0:00:28]} 51. Rxd8+ {[%emt 0:00:06]} Kxd8 {[%emt 0:00:12]} 52. Kxb6 {[%emt 0:00:07]} Kd7 {[%emt 0:00:12]} 53. Kb7 {[%emt 0:00:23]} Kd8 {[%emt 0:00:15]} 54. Kc6 {[%emt 0:00:06]} Ke7 {[%emt 0:00:11]} 55. Kc7 {[%emt 0:00:09]} 1-0

[Event "FIDE Open Sachove Univerzity QCC"]
[Site "Ceske Budejovice"]
[Date "2020.07.08"]
[Round "8.16"]
[White "Rolinkova, Adela"]
[Black "Cipera, Josef"]
[Result "1/2-1/2"]
[ECO "B28"]
[WhiteElo "1360"]
[BlackElo "1612"]
[Annotator "NA"]
[PlyCount "43"]
[EventDate "2020.07.01"]
[EventType "swiss"]
[EventCountry "CZE"]
[SourceTitle "playchess.com"]
[Source "ChessBase"]
[SourceQuality "1"]
[TimeControl "40/5400+30:1800+30"]

1. e4 {[%emt 0:00:00]} c5 {[%emt 0:00:00]} 2. Nf3 {[%emt 0:00:00]} a6 {[%emt 0:00:00]} 3. c3 {[%emt 0:00:00]} d5 {[%emt 0:00:07]} 4. e5 {[%emt 0:15:36]} Nc6 {[%emt 0:01:17]} 5. d4 {[%emt 0:00:52]} Bg4 {[%emt 0:07:10]} 6. Be2 {[%emt 0:00:33]} Bxf3 {[%emt 0:03:05]} 7. Bxf3 {[%emt 0:00:10]} e6 {[%emt 0:01:05]} 8. O-O {[%emt 0:00:52]} Qb6 {[%emt 0:01:10]} 9. dxc5 {[%emt 0:13:17]} Bxc5 {[%emt 0:00:31]} 10. b4 {[%emt 0:01:06]} Be7 {[%emt 0:04:26]} 11. Be3 {[%emt 0:02:51]} Qc7 {[%emt 0:01:45]} 12. a3 {[%emt 0:04:21]} Nxe5 {[%emt 0:01:39]} 13. Bd4 {[%emt 0:03:32]} Nxf3+ {[%emt 0:02:26]} 14. Qxf3 {[%emt 0:00:37]} Nf6 {[%emt 0:00:32]} 15. Nd2 {[%emt 0:02:19]} O-O {[%emt 0:01:20]} 16. Rfe1 {[%emt 0:02:24]} Rac8 {[%emt 0:05:05]} 17. Rac1 {[%emt 0:00:52]} Ne8 {[%emt 0:01:07]} 18. Nb3 {[%emt 0:12:54]} Bd6 {[%emt 0:01:42]} 19. g3 {[%emt 0:03:19]} e5 {[%emt 0:03:50]} 20. Bc5 {[%emt 0:01:40]} b6 {[%emt 0:04:59]} 21. Bxd6 {[%emt 0:02:17]} Qxd6 {[%emt 0:00:12]} 22. Qf5 {[%emt 0:00:49]} 1/2-1/2

[Event "FIDE Open Sachove Univerzity QCC"]
[Site "Ceske Budejovice"]
[Date "2020.07.08"]
[Round "8.17"]
[White "Kroulik, Vaclav"]
[Black "Kaucky, Jaroslav"]
[Result "1-0"]
[ECO "C45"]
[WhiteElo "1442"]
[BlackElo "1573"]
[Annotator "NA"]
[PlyCount "87"]
[EventDate "2020.07.01"]
[EventType "swiss"]
[EventCountry "CZE"]
[SourceTitle "playchess.com"]
[Source "ChessBase"]
[SourceQuality "1"]
[TimeControl "40/5400+30:1800+30"]

1. e4 {[%emt 0:00:00]} e5 {[%emt 0:00:00]} 2. Nf3 {[%emt 0:00:00]} Nc6 {[%emt 0:00:00]} 3. d4 {[%emt 0:00:00]} exd4 {[%emt 0:00:00]} 4. Nxd4 {[%emt 0:00:00]} Bc5 {[%emt 0:00:25]} 5. Be3 {[%emt 0:00:10]} Nxd4 {[%emt 0:01:57]} 6. Bxd4 {[%emt 0:00:13]} Bxd4 {[%emt 0:00:08]} 7. Qxd4 {[%emt 0:00:05]} Qf6 {[%emt 0:00:26]} 8. e5 {[%emt 0:00:43]} Qe6 {[%emt 0:00:03]} 9. Bc4 {[%emt 0:00:39]} Qg6 {[%emt 0:01:00]} 10. O-O {[%emt 0:00:58]} Ne7 {[%emt 0:00:12]} 11. Bd3 {[%emt 0:02:09]} Qe6 {[%emt 0:04:53]} 12. Nc3 {[%emt 0:00:41]} Nc6 {[%emt 0:04:04]} 13. Qh4 {[%emt 0:01:13]} a6 {[%emt 0:02:34]} 14. Rae1 {[%emt 0:01:07]} b6 {[%emt 0:02:45]} 15. f4 {[%emt 0:01:40]} Bb7 {[%emt 0:00:06]} 16. f5 {[%emt 0:01:36]} Qh6 {[%emt 0:00:30]} 17. Qg4 {[%emt 0:01:14]} O-O-O {[%emt 0:11:40]} 18. e6 {[%emt 0:03:12]} f6 {[%emt 0:09:21]} 19. Qe2 {[%emt 0:07:06]} Nd4 {[%emt 0:05:28]} 20. Qf2 {[%emt 0:00:34]} dxe6 {[%emt 0:02:03]} 21. fxe6 {[%emt 0:00:19]} Qg5 {[%emt 0:01:46]} 22. Ne4 {[%emt 0:15:54]} Bxe4 {[%emt 0:01:05]} 23. Bxa6+ {[%emt 0:01:25]} Kb8 {[%emt 0:00:52]} 24. Rxe4 {[%emt 0:00:24]} Qc5 {[%emt 0:03:47]} 25. c3 {[%emt 0:01:08]} Nc6 {[%emt 0:04:14]} 26. Qxc5 {[%emt 0:01:15]} bxc5 {[%emt 0:00:18]} 27. e7 {[%emt 0:00:56]} Rde8 {[%emt 0:01:12]} 28. Bb5 {[%emt 0:01:19]} Kb7 {[%emt 0:00:28]} 29. Re6 {[%emt 0:01:45]} Nd8 {[%emt 0:01:33]} 30. exd8=Q {[%emt 0:00:24]} Rxd8 {[%emt 0:00:30]} 31. Rfe1 {[%emt 0:00:59]} Rd2 {[%emt 0:00:32]} 32. R6e2 {[%emt 0:00:38]} Rd5 {[%emt 0:01:50]} 33. Bc4 {[%emt 0:00:39]} Rd7 {[%emt 0:01:44]} 34. Re7 {[%emt 0:01:31]} Rd2 {[%emt 0:00:02]} 35. R1e2 {[%emt 0:00:17]} Rd1+ {[%emt 0:01:00]} 36. Kf2 {[%emt 0:00:02]} g5 {[%emt 0:00:57]} 37. Rf7 {[%emt 0:00:42]} Rd6 {[%emt 0:00:04]} 38. Ke1 {[%emt 0:02:21]} Rhd8 {[%emt 0:01:01]} 39. Rxh7 {[%emt 0:00:45]} f5 {[%emt 0:01:37]} 40. Rh5 {[%emt 0:00:42]} Rg6 {[%emt 0:00:22]} 41. Re5 {[%emt 0:30:27]} Rgd6 {[%emt 0:30:44]} 42. Rxg5 {[%emt 0:02:46]} Rd1+ {[%emt 0:00:29]} 43. Kf2 {[%emt 0:00:03]} R8d2+ {[%emt 0:00:30]} 44. Re2 {[%emt 0:00:17]} 1-0

[Event "FIDE Open Sachove Univerzity QCC"]
[Site "Ceske Budejovice"]
[Date "2020.07.08"]
[Round "8.18"]
[White "Janouskova, Adela"]
[Black "Chmelik, Benedikt"]
[Result "1/2-1/2"]
[ECO "B22"]
[WhiteElo "1377"]
[BlackElo "1571"]
[Annotator "NA"]
[PlyCount "60"]
[EventDate "2020.07.01"]
[EventType "swiss"]
[EventCountry "CZE"]
[SourceTitle "playchess.com"]
[Source "ChessBase"]
[SourceQuality "1"]
[TimeControl "40/5400+30:1800+30"]

1. e4 {[%emt 0:00:00]} c5 {[%emt 0:00:00]} 2. c3 {[%emt 0:00:00]} d6 {[%emt 0:00:05]} 3. d4 {[%emt 0:00:05]} Nf6 {[%emt 0:01:30]} 4. Bd3 {[%emt 0:01:16]} Nbd7 {[%emt 0:00:21]} 5. Nf3 {[%emt 0:01:18]} e6 {[%emt 0:01:44]} 6. O-O {[%emt 0:01:33]} Be7 {[%emt 0:00:12]} 7. Be3 {[%emt 0:01:17]} O-O {[%emt 0:01:37]} 8. Nbd2 {[%emt 0:04:33]} a6 {[%emt 0:01:15]} 9. Qc2 {[%emt 0:03:41]} Ng4 {[%emt 0:12:10]} 10. Bf4 {[%emt 0:03:06]} e5 {[%emt 0:01:59]} 11. dxe5 {[%emt 0:01:27]} Ngxe5 {[%emt 0:00:30]} 12. Be2 {[%emt 0:01:46]} b5 {[%emt 0:03:52]} 13. Rad1 {[%emt 0:01:47]} Qc7 {[%emt 0:02:14]} 14. Bg3 {[%emt 0:01:58]} Nxf3+ {[%emt 0:01:31]} 15. Nxf3 {[%emt 0:00:50]} Ne5 {[%emt 0:01:19]} 16. Nxe5 {[%emt 0:01:41]} dxe5 {[%emt 0:01:00]} 17. Rd5 {[%emt 0:01:42]} Bf6 {[%emt 0:01:23]} 18. Rfd1 {[%emt 0:01:26]} Be6 {[%emt 0:00:21]} 19. R5d2 {[%emt 0:01:45]} Rfd8 {[%emt 0:03:03]} 20. Rxd8+ {[%emt 0:03:37]} Rxd8 {[%emt 0:00:08]} 21. Rxd8+ {[%emt 0:00:23]} Qxd8 {[%emt 0:00:01]} 22. b3 {[%emt 0:03:18]} Kf8 {[%emt 0:05:31]} 23. h3 {[%emt 0:00:40]} g6 {[%emt 0:02:39]} 24. a4 {[%emt 0:02:39]} c4 {[%emt 0:02:31]} 25. bxc4 {[%emt 0:00:50]} Bxc4 {[%emt 0:02:45]} 26. axb5 {[%emt 0:00:45]} axb5 {[%emt 0:00:52]} 27. Bxc4 {[%emt 0:00:10]} bxc4 {[%emt 0:00:00]} 28. Qa4 {[%emt 0:01:06]} Qd3 {[%emt 0:01:39]} 29. Qb4+ {[%emt 0:01:31]} Kg7 {[%emt 0:00:44]} 30. f3 {[%emt 0:00:51]} Qd1+ {[%emt 0:02:30]} 1/2-1/2